[Event "*** Titled Tuesday Blitz"]
[Site "Chess.com"]
[Date "2019.08.06"]
[Round "1"]
[White "JussupowFan"]
[Black "vladimirdamjanovic"]
[Result "0-1"]
[WhiteElo "2225"]
[BlackElo "2619"]
[TimeControl "180+2"]
[EndTime "13:09:11 PDT"]
[Termination "vladimirdamjanovic won by resignation"]

1. c4 {[%clk 0:02:57.4]} 1... g6 {[%clk 0:03:00.2]} 2. g3 {[%clk 0:02:57.5]}
2... Bg7 {[%clk 0:02:56.6]} 3. Bg2 {[%clk 0:02:59.4]} 3... c5 {[%clk 0:02:58]}
4. Nc3 {[%clk 0:02:39.1]} 4... Nc6 {[%clk 0:02:57.8]} 5. a3 {[%clk 0:02:39.9]}
5... d6 {[%clk 0:02:57.3]} 6. Rb1 {[%clk 0:02:40.9]} 6... Bf5 {[%clk 0:02:58.9]}
7. d3 {[%clk 0:02:41.5]} 7... Qd7 {[%clk 0:03:00.4]} 8. h4 {[%clk 0:02:40.1]}
8... Nf6 {[%clk 0:03:01.3]} 9. Nf3 {[%clk 0:02:39.6]} 9... O-O {[%clk
0:03:01.4]} 10. Nd5 {[%clk 0:02:37.9]} 10... Nxd5 {[%clk 0:02:56.7]} 11. cxd5
{[%clk 0:02:39.8]} 11... Nd4 {[%clk 0:02:57.3]} 12. e4 {[%clk 0:02:39.6]} 12...
Bg4 {[%clk 0:02:56.9]} 13. Be3 {[%clk 0:02:40]} 13... f5 {[%clk 0:02:50.3]} 14.
Bxd4 {[%clk 0:02:19.3]} 14... Bxd4 {[%clk 0:02:50.4]} 15. O-O {[%clk 0:02:16.8]}
15... Rf7 {[%clk 0:02:31.7]} 16. Re1 {[%clk 0:02:09.6]} 16... Raf8 {[%clk
0:02:25.1]} 17. e5 {[%clk 0:02:08.9]} 17... dxe5 {[%clk 0:02:21.1]} 18. Qb3
{[%clk 0:02:01.2]} 18... e4 {[%clk 0:01:46.3]} 19. Ng5 {[%clk 0:01:58.2]} 19...
f4 {[%clk 0:01:23.4]} 20. Nxf7 {[%clk 0:01:55.1]} 20... Rxf7 {[%clk 0:01:15.1]}
21. gxf4 {[%clk 0:01:47.2]} 21... Rxf4 {[%clk 0:01:04.3]} 22. Rxe4 {[%clk
0:01:45.4]} 22... Rxf2 {[%clk 0:00:52]} 23. d6+ {[%clk 0:01:19.7]} 23... Rf7+
{[%clk 0:00:40.2]} 24. Rxd4 {[%clk 0:01:06.6]} 24... cxd4 {[%clk 0:00:39.6]} 25.
dxe7 {[%clk 0:00:55.1]} 25... Qxe7 {[%clk 0:00:33.6]} 26. Rf1 {[%clk 0:00:53.6]}
26... Be6 {[%clk 0:00:34]} 27. Rxf7 {[%clk 0:00:37.4]} 27... Bxf7 {[%clk
0:00:30.7]} 28. Qxb7 {[%clk 0:00:37.7]} 28... Qe1+ {[%clk 0:00:26.1]} 29. Bf1
{[%clk 0:00:34.8]} 29... Qg3+ {[%clk 0:00:26.6]} 30. Bg2 {[%clk 0:00:32.8]}
30... Qe1+ {[%clk 0:00:27.5]} 31. Bf1 {[%clk 0:00:32.8]} 31... Qxh4 {[%clk
0:00:27.4]} 32. Qb8+ {[%clk 0:00:31.4]} 32... Kg7 {[%clk 0:00:27.2]} 33. Qxa7
{[%clk 0:00:32.9]} 33... Qg3+ {[%clk 0:00:28.2]} 34. Bg2 {[%clk 0:00:32.3]}
34... Qe1+ {[%clk 0:00:28.6]} 35. Bf1 {[%clk 0:00:32.3]} 35... Qe3+ {[%clk
0:00:28.7]} 36. Kh2 {[%clk 0:00:28.4]} 36... Qf2+ {[%clk 0:00:27]} 37. Bg2
{[%clk 0:00:28.9]} 37... Qxb2 {[%clk 0:00:28.5]} 38. a4 {[%clk 0:00:25]} 38...
h5 {[%clk 0:00:29.5]} 39. a5 {[%clk 0:00:26]} 39... g5 {[%clk 0:00:31]} 40. Qc5
{[%clk 0:00:24]} 40... Qb8+ {[%clk 0:00:26.9]} 41. Kg1 {[%clk 0:00:24.2]} 41...
Qf4 {[%clk 0:00:27.5]} 42. a6 {[%clk 0:00:24.2]} 42... Qe3+ {[%clk 0:00:27.4]}
43. Kf1 {[%clk 0:00:25.5]} 43... h4 {[%clk 0:00:21.6]} 44. a7 {[%clk 0:00:23.3]}
44... Qf4+ {[%clk 0:00:18.6]} 45. Ke1 {[%clk 0:00:16.7]} 45... Qe3+ {[%clk
0:00:18.9]} 46. Kd1 {[%clk 0:00:17.9]} 46... Bb3+ {[%clk 0:00:19.3]} 47. Qc2
{[%clk 0:00:16.8]} 47... Bxc2+ {[%clk 0:00:18.4]} 48. Kxc2 {[%clk 0:00:18.7]}
48... Qe2+ {[%clk 0:00:19.4]} 0-1

[Event "*** Titled Tuesday Blitz"]
[Site "Chess.com"]
[Date "2019.08.06"]
[Round "1"]
[White "M1711"]
[Black "Bigfish1995"]
[Result "0-1"]
[WhiteElo "2511"]
[BlackElo "3052"]
[TimeControl "180+2"]
[EndTime "13:09:30 PDT"]
[Termination "Bigfish1995 won on time"]

1. e4 {[%clk 0:02:59.8]} 1... c5 {[%clk 0:02:59.5]} 2. Nf3 {[%clk 0:03:00.6]}
2... d6 {[%clk 0:03:00.7]} 3. Bb5+ {[%clk 0:02:59.3]} 3... Nd7 {[%clk
0:03:00.4]} 4. O-O {[%clk 0:03:00.3]} 4... a6 {[%clk 0:03:01]} 5. Bd3 {[%clk
0:03:01.2]} 5... g6 {[%clk 0:03:01.6]} 6. Re1 {[%clk 0:03:00.9]} 6... Bg7 {[%clk
0:03:02.9]} 7. c3 {[%clk 0:03:01.6]} 7... Ngf6 {[%clk 0:03:01.5]} 8. Bc2 {[%clk
0:03:02.5]} 8... e5 {[%clk 0:03:02.8]} 9. d4 {[%clk 0:03:02.2]} 9... O-O {[%clk
0:03:03.3]} 10. Nbd2 {[%clk 0:02:57.2]} 10... b5 {[%clk 0:03:00.7]} 11. a4
{[%clk 0:02:54.6]} 11... Bb7 {[%clk 0:03:01.4]} 12. d5 {[%clk 0:02:55.6]} 12...
c4 {[%clk 0:03:01.5]} 13. Nf1 {[%clk 0:02:55.7]} 13... Nc5 {[%clk 0:03:01.3]}
14. Ng3 {[%clk 0:02:42.2]} 14... Qc7 {[%clk 0:02:36.5]} 15. Bg5 {[%clk 0:02:35]}
15... h6 {[%clk 0:02:34.4]} 16. Be3 {[%clk 0:02:31.1]} 16... Rfb8 {[%clk
0:02:32.2]} 17. h4 {[%clk 0:02:13]} 17... h5 {[%clk 0:02:15.5]} 18. Nh2 {[%clk
0:01:58]} 18... Bc8 {[%clk 0:02:12.8]} 19. axb5 {[%clk 0:01:50.9]} 19... Rxb5
{[%clk 0:01:59.2]} 20. Ra2 {[%clk 0:01:44.1]} 20... Rab8 {[%clk 0:01:59.6]} 21.
f4 {[%clk 0:01:00.5]} 21... exf4 {[%clk 0:01:40.9]} 22. Bxf4 {[%clk 0:01:00]}
22... Rxb2 {[%clk 0:01:36.7]} 23. Rxb2 {[%clk 0:00:58.6]} 23... Rxb2 {[%clk
0:01:37.4]} 24. e5 {[%clk 0:00:56.3]} 24... dxe5 {[%clk 0:01:16]} 25. Bxe5
{[%clk 0:00:57.1]} 25... Qd8 {[%clk 0:01:12.5]} 26. Qd4 {[%clk 0:00:46.1]} 26...
Ncd7 {[%clk 0:00:51.8]} 27. Ba4 {[%clk 0:00:40.3]} 27... Nxe5 {[%clk 0:00:48.7]}
28. Qxe5 {[%clk 0:00:37.8]} 28... Bb7 {[%clk 0:00:30.4]} 29. Nf3 {[%clk
0:00:11.7]} 29... Bxd5 {[%clk 0:00:31.4]} 30. Rd1 {[%clk 0:00:11.6]} 30... Qb6+
{[%clk 0:00:30]} 31. Qd4 {[%clk 0:00:04.8]} 31... Qxd4+ {[%clk 0:00:23.4]} 32.
Rxd4 {[%clk 0:00:06.7]} 32... Bf8 {[%clk 0:00:21.1]} 33. Kf1 {[%clk 0:00:03.7]}
33... Bc5 {[%clk 0:00:21.9]} 34. Rd2 {[%clk 0:00:03.8]} 34... Rxd2 {[%clk
0:00:18.9]} 35. Nxd2 {[%clk 0:00:05.7]} 35... Kf8 {[%clk 0:00:18.9]} 36. Bd1
{[%clk 0:00:06.2]} 36... Nd7 {[%clk 0:00:18.6]} 37. Nge4 {[%clk 0:00:03.8]}
37... Be7 {[%clk 0:00:18]} 38. g3 {[%clk 0:00:04.1]} 38... Ne5 {[%clk
0:00:18.9]} 39. Be2 {[%clk 0:00:03.1]} 39... a5 {[%clk 0:00:20]} 40. Bd1 {[%clk
0:00:02.9]} 40... Bc6 {[%clk 0:00:20.7]} 41. Nf2 {[%clk 0:00:02.2]} 41... a4
{[%clk 0:00:21.5]} 42. Bc2 {[%clk 0:00:03.8]} 42... a3 {[%clk 0:00:22.5]} 43.
Bb1 {[%clk 0:00:05.4]} 43... f5 {[%clk 0:00:18.1]} 44. Ba2 {[%clk 0:00:06.6]}
44... Bd5 {[%clk 0:00:17.7]} 45. Nd1 {[%clk 0:00:06.6]} 45... Bc5 {[%clk
0:00:18.8]} 46. Ke2 {[%clk 0:00:07.2]} 46... Nd3 {[%clk 0:00:18]} 47. Nxc4
{[%clk 0:00:02.7]} 47... Nc1+ {[%clk 0:00:18.9]} 48. Kd2 {[%clk 0:00:03.2]}
48... Nxa2 {[%clk 0:00:20]} 49. Nxa3 {[%clk 0:00:03.3]} 49... Bxa3 {[%clk
0:00:20.5]} 0-1

[Event "*** Titled Tuesday Blitz"]
[Site "Chess.com"]
[Date "2019.08.06"]
[Round "1"]
[White "temus_galaktionov"]
[Black "Lion_DL"]
[Result "1/2-1/2"]
[WhiteElo "2666"]
[BlackElo "2336"]
[TimeControl "180+2"]
[EndTime "13:09:31 PDT"]
[Termination "Game drawn by agreement"]

1. d4 {[%clk 0:03:01.9]} 1... Nf6 {[%clk 0:02:59.3]} 2. Nf3 {[%clk 0:03:02.9]}
2... e6 {[%clk 0:03:00.8]} 3. c4 {[%clk 0:03:03.8]} 3... b6 {[%clk 0:02:59.1]}
4. g3 {[%clk 0:03:04.1]} 4... Bb7 {[%clk 0:02:59.1]} 5. Bg2 {[%clk 0:03:04.5]}
5... Be7 {[%clk 0:03:00.6]} 6. Nc3 {[%clk 0:03:05.2]} 6... Ne4 {[%clk
0:02:57.3]} 7. Bd2 {[%clk 0:03:03.3]} 7... O-O {[%clk 0:02:54.3]} 8. d5 {[%clk
0:03:04.4]} 8... Nxd2 {[%clk 0:02:51]} 9. Qxd2 {[%clk 0:03:06.3]} 9... Bf6
{[%clk 0:02:50.2]} 10. Nd4 {[%clk 0:03:05.7]} 10... c5 {[%clk 0:02:44.5]} 11.
Ndb5 {[%clk 0:02:41]} 11... d6 {[%clk 0:02:44]} 12. O-O {[%clk 0:02:31.9]} 12...
a6 {[%clk 0:02:42.1]} 13. Na3 {[%clk 0:02:29.7]} 13... Bxc3 {[%clk 0:02:39.2]}
14. bxc3 {[%clk 0:02:19.7]} 14... exd5 {[%clk 0:02:37.4]} 15. cxd5 {[%clk
0:02:05.5]} 15... b5 {[%clk 0:02:38.2]} 16. Rab1 {[%clk 0:02:05.3]} 16... Nd7
{[%clk 0:02:27.3]} 17. e4 {[%clk 0:02:03.9]} 17... Re8 {[%clk 0:02:25.2]} 18.
Rfe1 {[%clk 0:02:03.2]} 18... c4 {[%clk 0:02:05.2]} 19. Nc2 {[%clk 0:01:59.3]}
19... Nc5 {[%clk 0:02:06.2]} 20. Nd4 {[%clk 0:01:59.9]} 20... Rc8 {[%clk
0:02:00.9]} 21. f4 {[%clk 0:01:57.9]} 21... g6 {[%clk 0:01:58.6]} 22. h3 {[%clk
0:01:58.2]} 22... Re7 {[%clk 0:01:52.5]} 23. Re3 {[%clk 0:01:54.9]} 23... Qe8
{[%clk 0:01:46.2]} 24. Rbe1 {[%clk 0:01:54.8]} 24... Qd7 {[%clk 0:01:36.1]} 25.
Kh2 {[%clk 0:01:53.8]} 25... Rce8 {[%clk 0:01:36]} 26. R1e2 {[%clk 0:01:39.2]}
26... Qc7 {[%clk 0:01:33.9]} 27. h4 {[%clk 0:01:31.7]} 27... h5 {[%clk
0:01:20.4]} 28. Bf3 {[%clk 0:01:32.6]} 28... Qd7 {[%clk 0:01:16.8]} 29. Bg2
{[%clk 0:01:16.2]} 29... Qc7 {[%clk 0:01:16.4]} 30. Qc2 {[%clk 0:01:14.6]} 30...
Bxd5 {[%clk 0:01:13.8]} 31. e5 {[%clk 0:00:46.2]} 31... Bxg2 {[%clk 0:01:09.2]}
32. exd6 {[%clk 0:00:45.9]} 32... Qxd6 {[%clk 0:01:07.1]} 33. Rxe7 {[%clk
0:00:46.5]} 33... Rxe7 {[%clk 0:01:08.1]} 34. Kxg2 {[%clk 0:00:48.4]} 34... Nd3
{[%clk 0:01:05.8]} 35. Nf3 {[%clk 0:00:41.5]} 35... f6 {[%clk 0:00:54.7]} 36.
Qd2 {[%clk 0:00:36.5]} 36... Kg7 {[%clk 0:00:53.5]} 37. Re3 {[%clk 0:00:36.6]}
37... Nxf4+ {[%clk 0:00:50.9]} 38. Kf1 {[%clk 0:00:26.3]} 38... Qxd2 {[%clk
0:00:48.1]} 39. Rxe7+ {[%clk 0:00:26.6]} 39... Kf8 {[%clk 0:00:46.5]} 40. Nxd2
{[%clk 0:00:27.2]} 40... Kxe7 {[%clk 0:00:47.6]} 41. gxf4 {[%clk 0:00:28.8]}
41... Ke6 {[%clk 0:00:48.1]} 42. Kf2 {[%clk 0:00:29.7]} 42... Kf5 {[%clk
0:00:49.1]} 43. Kf3 {[%clk 0:00:26.9]} 43... g5 {[%clk 0:00:50.6]} 44. fxg5
{[%clk 0:00:27.5]} 44... fxg5 {[%clk 0:00:52.5]} 45. hxg5 {[%clk 0:00:26.5]}
45... Kxg5 {[%clk 0:00:54.4]} 46. Ne4+ {[%clk 0:00:27.7]} 46... Kf5 {[%clk
0:00:53.8]} 47. Nc5 {[%clk 0:00:27.9]} 47... a5 {[%clk 0:00:54.1]} 48. a3 {[%clk
0:00:27.5]} 48... Ke5 {[%clk 0:00:51.4]} 49. Nb7 {[%clk 0:00:26.5]} 49... b4
{[%clk 0:00:50.5]} 50. cxb4 {[%clk 0:00:24.5]} 50... axb4 {[%clk 0:00:52.4]} 51.
axb4 {[%clk 0:00:25.8]} 51... Kd5 {[%clk 0:00:48.4]} 52. Na5 {[%clk 0:00:25.1]}
52... c3 {[%clk 0:00:47.6]} 53. Kg3 {[%clk 0:00:13.1]} 53... c2 {[%clk
0:00:47.6]} 54. Nb3 {[%clk 0:00:14.6]} 54... Kc4 {[%clk 0:00:49]} 55. Nc1 {[%clk
0:00:15.9]} 55... Kxb4 {[%clk 0:00:48.8]} 56. Kh4 {[%clk 0:00:17.6]} 56... Kc3
{[%clk 0:00:50.2]} 57. Kxh5 {[%clk 0:00:19.1]} 57... Kd2 {[%clk 0:00:51.6]} 58.
Nb3+ {[%clk 0:00:20]} 1/2-1/2

[Event "*** Titled Tuesday Blitz"]
[Site "Chess.com"]
[Date "2019.08.06"]
[Round "1"]
[White "amatatanav"]
[Black "fm24601"]
[Result "0-1"]
[WhiteElo "2500"]
[BlackElo "2447"]
[TimeControl "180+2"]
[EndTime "13:09:32 PDT"]
[Termination "fm24601 won by resignation"]

1. e4 {[%clk 0:03:01.9]} 1... e5 {[%clk 0:03:01.1]} 2. Bc4 {[%clk 0:03:02.1]}
2... Nc6 {[%clk 0:03:01.8]} 3. Nc3 {[%clk 0:03:02.7]} 3... Nf6 {[%clk 0:03:03]}
4. d3 {[%clk 0:03:03.6]} 4... Bb4 {[%clk 0:03:04.5]} 5. Ne2 {[%clk 0:03:03.9]}
5... d5 {[%clk 0:03:05.5]} 6. exd5 {[%clk 0:03:05.8]} 6... Nxd5 {[%clk
0:03:07.4]} 7. O-O {[%clk 0:03:06]} 7... Bxc3 {[%clk 0:03:09]} 8. Nxc3 {[%clk
0:02:56.4]} 8... Nxc3 {[%clk 0:03:09.7]} 9. bxc3 {[%clk 0:02:58.3]} 9... O-O
{[%clk 0:03:11]} 10. f4 {[%clk 0:02:46.1]} 10... Qe7 {[%clk 0:02:24.7]} 11. Qh5
{[%clk 0:02:23.5]} 11... Be6 {[%clk 0:01:12.8]} 12. f5 {[%clk 0:01:10]} 12... g6
{[%clk 0:00:49.8]} 13. Qg4 {[%clk 0:00:22.2]} 13... Qc5+ {[%clk 0:00:36.5]} 14.
Kh1 {[%clk 0:00:22.8]} 14... Bxc4 {[%clk 0:00:37.4]} 15. dxc4 {[%clk 0:00:24.4]}
15... e4 {[%clk 0:00:29.3]} 16. Qxe4 {[%clk 0:00:19.1]} 16... Rfe8 {[%clk
0:00:29.2]} 17. Qf4 {[%clk 0:00:18.6]} 17... Ne5 {[%clk 0:00:27.9]} 18. fxg6
{[%clk 0:00:13.1]} 18... hxg6 {[%clk 0:00:29.8]} 19. Qf6 {[%clk 0:00:11.9]}
19... Re6 {[%clk 0:00:25]} 20. Qh4 {[%clk 0:00:09.3]} 20... Qxc4 {[%clk
0:00:20]} 21. Bf4 {[%clk 0:00:10.7]} 21... Rae8 {[%clk 0:00:16.3]} 22. Rad1
{[%clk 0:00:08.8]} 22... Qe4 {[%clk 0:00:15.2]} 23. Rd8 {[%clk 0:00:08.4]} 23...
Qe2 {[%clk 0:00:14.6]} 24. Re1 {[%clk 0:00:08.1]} 24... Qxe1+ {[%clk 0:00:13.3]}
25. Qxe1 {[%clk 0:00:10]} 25... Rxd8 {[%clk 0:00:14.5]} 26. h3 {[%clk
0:00:07.4]} 26... Nd7 {[%clk 0:00:13.4]} 27. Qh4 {[%clk 0:00:07.9]} 27... Rde8
{[%clk 0:00:13.4]} 28. Bxc7 {[%clk 0:00:08.7]} 28... Re1+ {[%clk 0:00:13.1]} 29.
Kh2 {[%clk 0:00:09.9]} 29... R1e2 {[%clk 0:00:15]} 30. Qg4 {[%clk 0:00:09.4]}
30... Nf8 {[%clk 0:00:15.3]} 31. Bd6 {[%clk 0:00:07.7]} 31... Rxc2 {[%clk
0:00:15.7]} 32. Qf3 {[%clk 0:00:05.6]} 32... b6 {[%clk 0:00:15.8]} 33. Bf4
{[%clk 0:00:05.6]} 33... Ree2 {[%clk 0:00:16.5]} 34. Bh6 {[%clk 0:00:06.1]}
34... Ne6 {[%clk 0:00:14.8]} 35. Qa8+ {[%clk 0:00:05.7]} 35... Kh7 {[%clk
0:00:15.1]} 36. Bf8 {[%clk 0:00:03.7]} 36... Rxg2+ {[%clk 0:00:14.6]} 37. Kh1
{[%clk 0:00:05.2]} 37... Rh2+ {[%clk 0:00:15.6]} 38. Kg1 {[%clk 0:00:06.7]}
38... Rhg2+ {[%clk 0:00:15.4]} 39. Kf1 {[%clk 0:00:08.1]} 39... Rgd2 {[%clk
0:00:16.3]} 40. Ke1 {[%clk 0:00:08.6]} 40... Rd8 {[%clk 0:00:16.6]} 41. Qe4
{[%clk 0:00:08.2]} 41... Rc1+ {[%clk 0:00:17.3]} 42. Ke2 {[%clk 0:00:08.6]}
42... Rxf8 {[%clk 0:00:17.2]} 43. Qh4+ {[%clk 0:00:09.4]} 43... Kg8 {[%clk
0:00:18.5]} 44. Kd2 {[%clk 0:00:11]} 44... Rf1 {[%clk 0:00:19.2]} 45. Qc4 {[%clk
0:00:11.4]} 45... Rf5 {[%clk 0:00:21.1]} 46. a4 {[%clk 0:00:11.6]} 46... Rd8+
{[%clk 0:00:23]} 47. Kc2 {[%clk 0:00:12.5]} 47... Rc5 {[%clk 0:00:24.9]} 48. Qb4
{[%clk 0:00:10.5]} 48... Rdc8 {[%clk 0:00:26]} 49. Kb2 {[%clk 0:00:10.8]} 49...
Rxc3 {[%clk 0:00:27]} 50. a5 {[%clk 0:00:12.2]} 50... Rc2+ {[%clk 0:00:27.9]}
51. Kb1 {[%clk 0:00:12.1]} 51... bxa5 {[%clk 0:00:29.8]} 52. Qxa5 {[%clk
0:00:12.7]} 52... Nd4 {[%clk 0:00:29.9]} 53. h4 {[%clk 0:00:10.4]} 53... Rb8+
{[%clk 0:00:30.8]} 0-1

[Event "*** Titled Tuesday Blitz"]
[Site "Chess.com"]
[Date "2019.08.06"]
[Round "1"]
[White "Time2Pretend"]
[Black "Wolverine_master"]
[Result "0-1"]
[WhiteElo "2530"]
[BlackElo "2108"]
[TimeControl "180+2"]
[EndTime "13:09:33 PDT"]
[Termination "Wolverine_master won by resignation"]

1. d4 {[%clk 0:03:01.9]} 1... d5 {[%clk 0:02:59.3]} 2. c4 {[%clk 0:03:02.7]}
2... e6 {[%clk 0:03:00.6]} 3. Nc3 {[%clk 0:03:03.9]} 3... Nf6 {[%clk 0:03:02]}
4. cxd5 {[%clk 0:03:05.1]} 4... exd5 {[%clk 0:03:02.8]} 5. Bg5 {[%clk
0:03:06.3]} 5... c6 {[%clk 0:03:03.7]} 6. e3 {[%clk 0:03:07.6]} 6... Be7 {[%clk
0:03:05.1]} 7. Bd3 {[%clk 0:03:08.9]} 7... O-O {[%clk 0:03:04]} 8. Qc2 {[%clk
0:03:10.1]} 8... h6 {[%clk 0:03:03.2]} 9. Bh4 {[%clk 0:03:10.6]} 9... Nbd7
{[%clk 0:03:04.1]} 10. Nge2 {[%clk 0:03:09.6]} 10... Re8 {[%clk 0:02:49]} 11.
O-O {[%clk 0:03:04.7]} 11... Nf8 {[%clk 0:02:49.9]} 12. f3 {[%clk 0:03:05.7]}
12... a5 {[%clk 0:02:36.1]} 13. h3 {[%clk 0:02:56.4]} 13... b5 {[%clk
0:02:36.4]} 14. Rae1 {[%clk 0:02:52.8]} 14... Be6 {[%clk 0:02:15.8]} 15. e4
{[%clk 0:02:52.3]} 15... Ng6 {[%clk 0:02:12]} 16. Bf2 {[%clk 0:02:48.8]} 16...
dxe4 {[%clk 0:01:46.6]} 17. fxe4 {[%clk 0:02:49.7]} 17... Bc4 {[%clk 0:01:48.1]}
18. Bxc4 {[%clk 0:02:41]} 18... bxc4 {[%clk 0:01:50]} 19. Qa4 {[%clk 0:02:33.5]}
19... Bb4 {[%clk 0:01:47.3]} 20. a3 {[%clk 0:02:32.8]} 20... Bxc3 {[%clk
0:01:22.7]} 21. Nxc3 {[%clk 0:02:34.7]} 21... Nf4 {[%clk 0:01:09.1]} 22. Qxc4
{[%clk 0:02:34.9]} 22... N6h5 {[%clk 0:01:09.8]} 23. Kh2 {[%clk 0:01:48.4]}
23... Qg5 {[%clk 0:01:08.5]} 24. Rg1 {[%clk 0:01:42.9]} 24... c5 {[%clk
0:00:58.4]} 25. Qxc5 {[%clk 0:01:40]} 25... Qxc5 {[%clk 0:00:59]} 26. dxc5
{[%clk 0:01:41.4]} 26... Nd3 {[%clk 0:01:00.7]} 27. Re2 {[%clk 0:01:41.8]} 27...
Rac8 {[%clk 0:00:55.4]} 28. Rd1 {[%clk 0:01:29.1]} 28... Nhf4 {[%clk 0:00:51.4]}
29. Red2 {[%clk 0:01:24.7]} 29... Nxc5 {[%clk 0:00:52.4]} 30. Bxc5 {[%clk
0:01:25.1]} 30... Rxc5 {[%clk 0:00:54.3]} 31. Rd8 {[%clk 0:01:24.7]} 31... Rxd8
{[%clk 0:00:51.8]} 32. Rxd8+ {[%clk 0:01:25.5]} 32... Kh7 {[%clk 0:00:53.7]} 33.
g3 {[%clk 0:01:23.9]} 33... Ne6 {[%clk 0:00:52.7]} 34. Rd5 {[%clk 0:01:25]}
34... Kg6 {[%clk 0:00:51.4]} 35. Rxc5 {[%clk 0:01:24.3]} 35... Nxc5 {[%clk
0:00:53.3]} 36. b4 {[%clk 0:01:25.8]} 36... axb4 {[%clk 0:00:51.5]} 37. axb4
{[%clk 0:01:27.7]} 37... Nd3 {[%clk 0:00:53]} 38. b5 {[%clk 0:01:28.8]} 38...
Kf6 {[%clk 0:00:53.9]} 39. b6 {[%clk 0:01:14.7]} 39... Nc5 {[%clk 0:00:53.8]}
40. Na4 {[%clk 0:01:15.1]} 40... Nb7 {[%clk 0:00:53.3]} 41. Kg2 {[%clk
0:01:16.4]} 41... Ke5 {[%clk 0:00:54.2]} 42. Kf3 {[%clk 0:01:17.8]} 42... h5
{[%clk 0:00:49.4]} 43. Ke3 {[%clk 0:01:18.1]} 43... g5 {[%clk 0:00:49.6]} 44. g4
{[%clk 0:01:18.2]} 44... h4 {[%clk 0:00:43.7]} 45. Kd3 {[%clk 0:01:18.2]} 45...
Kf4 {[%clk 0:00:44.8]} 46. Kd4 {[%clk 0:01:19.3]} 46... Kg3 {[%clk 0:00:46.1]}
47. Nc5 {[%clk 0:01:20.2]} 47... Nd8 {[%clk 0:00:45.5]} 48. Nd7 {[%clk
0:00:44.5]} 48... Kxh3 {[%clk 0:00:46.2]} 49. Ne5 {[%clk 0:00:45.9]} 49... Kg3
{[%clk 0:00:45.5]} 50. Nxf7 {[%clk 0:00:47.2]} 50... Nb7 {[%clk 0:00:42.9]} 51.
Nxg5 {[%clk 0:00:29.9]} 51... Kxg4 {[%clk 0:00:43.4]} 52. Ne6 {[%clk 0:00:24.7]}
52... h3 {[%clk 0:00:44]} 53. Nc5 {[%clk 0:00:25.9]} 53... h2 {[%clk 0:00:44.1]}
54. Nd3 {[%clk 0:00:27.2]} 54... Kg3 {[%clk 0:00:43.4]} 55. e5 {[%clk
0:00:28.5]} 55... h1=Q {[%clk 0:00:43.1]} 56. e6 {[%clk 0:00:29.6]} 56... Qc6
{[%clk 0:00:42.9]} 57. Ke5 {[%clk 0:00:30.3]} 57... Qxb6 {[%clk 0:00:42.6]} 58.
Nf4 {[%clk 0:00:31.5]} 58... Qe3+ {[%clk 0:00:42.5]} 59. Kd5 {[%clk 0:00:31.7]}
59... Kxf4 {[%clk 0:00:40.9]} 60. e7 {[%clk 0:00:33]} 60... Qxe7 {[%clk
0:00:41.4]} 61. Kc6 {[%clk 0:00:34.7]} 61... Qd6+ {[%clk 0:00:41.4]} 62. Kb5
{[%clk 0:00:35]} 62... Qc5+ {[%clk 0:00:41.7]} 63. Ka4 {[%clk 0:00:35.8]} 63...
Qb6 {[%clk 0:00:42.4]} 64. Ka3 {[%clk 0:00:37.2]} 64... Ke4 {[%clk 0:00:43.8]}
0-1

[Event "*** Titled Tuesday Blitz"]
[Site "Chess.com"]
[Date "2019.08.06"]
[Round "1"]
[White "jlandaw"]
[Black "SergeiAza"]
[Result "1/2-1/2"]
[WhiteElo "2435"]
[BlackElo "2827"]
[TimeControl "180+2"]
[EndTime "13:09:35 PDT"]
[Termination "Game drawn by repetition"]

1. e4 {[%clk 0:03:01]} 1... e5 {[%clk 0:03:00.9]} 2. Nf3 {[%clk 0:03:01.6]} 2...
Nc6 {[%clk 0:03:01.9]} 3. Bb5 {[%clk 0:03:02.5]} 3... a6 {[%clk 0:03:02.7]} 4.
Ba4 {[%clk 0:03:01.2]} 4... Nf6 {[%clk 0:03:03.4]} 5. O-O {[%clk 0:03:02.1]}
5... Be7 {[%clk 0:03:04.4]} 6. Re1 {[%clk 0:03:02.9]} 6... b5 {[%clk 0:03:05.4]}
7. Bb3 {[%clk 0:03:03.7]} 7... d6 {[%clk 0:03:06.9]} 8. c3 {[%clk 0:03:04.3]}
8... O-O {[%clk 0:03:08.4]} 9. h3 {[%clk 0:03:05.2]} 9... h6 {[%clk 0:03:09.9]}
10. d4 {[%clk 0:02:56.8]} 10... Re8 {[%clk 0:03:11.3]} 11. Nbd2 {[%clk
0:02:56.3]} 11... Bf8 {[%clk 0:03:12.2]} 12. dxe5 {[%clk 0:02:43.2]} 12... Nxe5
{[%clk 0:03:04.3]} 13. Nf1 {[%clk 0:02:31.9]} 13... Bb7 {[%clk 0:02:17.2]} 14.
Ng3 {[%clk 0:02:21.7]} 14... c5 {[%clk 0:01:57.8]} 15. a4 {[%clk 0:02:09.7]}
15... Qc7 {[%clk 0:01:19.9]} 16. Nxe5 {[%clk 0:01:47.2]} 16... dxe5 {[%clk
0:01:15.8]} 17. Qf3 {[%clk 0:01:44.8]} 17... c4 {[%clk 0:01:14.4]} 18. Bc2
{[%clk 0:01:44.9]} 18... Re6 {[%clk 0:01:08.7]} 19. Be3 {[%clk 0:01:11]} 19...
Nd7 {[%clk 0:01:02.9]} 20. Nf5 {[%clk 0:00:49]} 20... Nc5 {[%clk 0:00:57.6]} 21.
a5 {[%clk 0:00:26.5]} 21... Kh7 {[%clk 0:00:44.9]} 22. Bxc5 {[%clk 0:00:26.5]}
22... Bxc5 {[%clk 0:00:41.2]} 23. b4 {[%clk 0:00:28.2]} 23... Ba7 {[%clk
0:00:32.9]} 24. Rad1 {[%clk 0:00:28.8]} 24... Rf6 {[%clk 0:00:31.6]} 25. Qg3
{[%clk 0:00:28.8]} 25... g6 {[%clk 0:00:30.3]} 26. Ne3 {[%clk 0:00:30.7]} 26...
Qe7 {[%clk 0:00:24.7]} 27. Re2 {[%clk 0:00:28]} 27... Rf4 {[%clk 0:00:22.4]} 28.
Nd5 {[%clk 0:00:21.1]} 28... Bxd5 {[%clk 0:00:22.7]} 29. Rxd5 {[%clk 0:00:23]}
29... Rd8 {[%clk 0:00:21.7]} 30. Kf1 {[%clk 0:00:24.4]} 30... Kg7 {[%clk
0:00:21.3]} 31. Red2 {[%clk 0:00:20.1]} 31... Rxd5 {[%clk 0:00:20.2]} 32. exd5
{[%clk 0:00:22]} 32... Qd6 {[%clk 0:00:20.6]} 33. f3 {[%clk 0:00:22]} 33... h5
{[%clk 0:00:21.2]} 34. Be4 {[%clk 0:00:22.2]} 34... Qf6 {[%clk 0:00:15.6]} 35.
Ke1 {[%clk 0:00:21]} 35... Qd6 {[%clk 0:00:13.2]} 36. Kd1 {[%clk 0:00:16.4]}
36... Bb8 {[%clk 0:00:12.3]} 37. Kc2 {[%clk 0:00:17.2]} 37... Qe7 {[%clk
0:00:13.2]} 38. Qe1 {[%clk 0:00:17.8]} 38... Bd6 {[%clk 0:00:14.6]} 39. Rd1
{[%clk 0:00:18.7]} 39... Qf6 {[%clk 0:00:15.2]} 40. Qe3 {[%clk 0:00:19.6]} 40...
h4 {[%clk 0:00:16.4]} 41. Qb6 {[%clk 0:00:20.5]} 41... Be7 {[%clk 0:00:09]} 42.
d6 {[%clk 0:00:21.2]} 42... Bd8 {[%clk 0:00:08.1]} 43. Qxa6 {[%clk 0:00:22.4]}
43... Qg5 {[%clk 0:00:08.6]} 44. Rd2 {[%clk 0:00:21.6]} 44... Qg3 {[%clk
0:00:10.1]} 45. Re2 {[%clk 0:00:21.2]} 45... Rxe4 {[%clk 0:00:09.2]} 46. Rxe4
{[%clk 0:00:15.4]} 46... Qxg2+ {[%clk 0:00:10.3]} 47. Kd1 {[%clk 0:00:17]} 47...
Qxf3+ {[%clk 0:00:10.4]} 48. Re2 {[%clk 0:00:18.2]} 48... Qd3+ {[%clk
0:00:11.3]} 49. Rd2 {[%clk 0:00:18]} 49... Qb1+ {[%clk 0:00:10.9]} 50. Ke2
{[%clk 0:00:19.4]} 50... Qe4+ {[%clk 0:00:11.8]} 51. Kd1 {[%clk 0:00:20.7]}
51... Qb1+ {[%clk 0:00:11.3]} 52. Ke2 {[%clk 0:00:21.6]} 52... Bg5 {[%clk
0:00:11.5]} 53. d7 {[%clk 0:00:17.3]} 53... Qe4+ {[%clk 0:00:12.3]} 54. Kd1
{[%clk 0:00:17.7]} 54... Qb1+ {[%clk 0:00:11.5]} 55. Ke2 {[%clk 0:00:19.1]}
55... Qe4+ {[%clk 0:00:10.9]} 56. Kd1 {[%clk 0:00:20.3]} 56... Qb1+ {[%clk
0:00:09]} 57. Ke2 {[%clk 0:00:21.3]} 1/2-1/2